bitfinex/quotes_ETHUSD_20240603
["timestamp","ask_amount","ask_price","bid_price","bid_amount"]
[1717445215452,0.62943016,3779.9,3779.7,1.32126577]
[1717445217294,0.05758199,3779.9,3779.7,1.32126577]
[1717445217477,0.62943227,3779.9,3779.7,1.32126577]
[1717445218670,0.6294297,3779.9,3779.7,1.32126577]
[1717445219250,2.64564,3779.8,3779.7,1.32126577]
[1717445219475,3.60991545,3779.8,3779.7,1.32126577]
[1717445219674,3.66771123,3779.8,3779.7,1.32126577]
[1717445219957,5.25395265,3779.8,3779.7,1.32126577]
[1717445220363,4.86152966,3779.8,3779.7,1.32126577]
[1717445222109,2.64586,3779.5,3779.0,2.3075]
[1717445222270,2.21588966,3779.8,3779.1,1.32126577]
[1717445222271,1.271,3779.4,3779.1,1.32126577]
[1717445222472,2.64604,3779.3,3779.1,3.62876577]
[1717445222676,2.64604,3779.3,3779.1,3.99164235]
[1717445222677,0.57185246,3779.2,3779.1,3.99164235]
[1717445222874,1.64458299,3779.3,3779.1,3.99164235]
[1717445223107,0.05762541,3779.2,3779.1,3.99164235]
[1717445223253,2.15888148,3779.4,3779.1,3.99164235]
[1717445223454,1.58695991,3779.4,3779.3,0.721]
[1717445223717,1.58695991,3779.4,3779.3,2.04226577]
[1717445224006,1.58695991,3779.5,3779.3,4.90623001]
[1717445224213,1.58695991,3779.7,3779.4,3.71396577]
[1717445224501,2.64542,3780.2,3778.4,3.20306354]
[1717445224502,2.2726,3779.6,3778.6,2.347]
[1717445224704,4.95429754,3779.5,3778.7,1.32126577]
[1717445224908,0.57187897,3779.4,3778.7,1.32126577]
[1717445225064,1.58744754,3779.0,3778.7,1.32126577]
[1717445226008,2.15932651,3779.0,3778.7,1.32126577]
[1717445226383,1.58744754,3779.0,3778.7,1.32126577]
[1717445226577,0.05747813,3778.9,3778.7,1.32126577]
[1717445226895,2.64634,3778.8,3778.7,1.32126577]
[1717445227111,3.21833588,3778.8,3778.7,1.32126577]
[1717445227436,3.27578801,3778.8,3778.7,1.32126577]
[1717445230284,4.29068311,3778.8,3778.7,1.32126577]
[1717445230629,4.86267899,3778.8,3778.7,1.32126577]
[1717445233216,3.27578801,3778.8,3778.7,1.32126577]
[1717445235670,2.70379213,3778.8,3778.7,1.32126577]
[1717445237104,3.42479213,3778.8,3778.7,1.32126577]
[1717445237306,2.64668,3778.4,3777.5,2.347]
[1717445237472,2.64668,3778.4,3777.7,1.32126577]
[1717445237473,2.64683,3778.1,3777.7,1.32126577]
[1717445237910,2.64697,3777.9,3777.7,1.32126577]
[1717445238208,0.05704215,3777.8,3777.7,1.32126577]
[1717445242412,1.04844337,3777.8,3777.7,1.32126577]
[1717445242616,0.77804215,3777.8,3777.7,1.32126577]
[1717445245544,1.32804215,3777.8,3777.7,1.32126577]
[1717445247208,1.32804215,3777.8,3776.5,2.3924]
[1717445247547,1.32804215,3777.8,3776.7,1.32126577]
[1717445247548,2.64751,3777.2,3776.7,1.32126577]
[1717445247708,2.64751,3777.2,3776.8,0.44346658]
[1717445247908,0.0558785,3777.1,3776.9,1.32126577]
[1717445250650,2.6476,3777.0,3776.9,1.32126577]
[1717445251161,2.70330211,3777.0,3776.9,1.32126577]
[1717445261451,0.05570211,3777.0,3776.9,1.32126577]
[1717445261620,0.05570211,3777.0,3776.9,1.52549235]
[1717445261825,2.6474,3777.3,3776.9,1.52549235]
[1717445262024,0.05406222,3777.0,3776.9,1.52549235]
[1717445262257,2.6474,3777.3,3776.9,1.52549235]
[1717445262443,0.05406222,3777.0,3776.9,1.52549235]
[1717445262968,2.6474,3777.3,3776.9,1.52549235]
[1717445263129,0.05411425,3777.2,3776.9,1.52549235]
[1717445268133,0.05411425,3777.2,3776.9,2.24649235]
[1717445272349,0.62632934,3777.2,3776.9,2.24649235]
[1717445274461,1.64180781,3777.2,3776.9,2.24649235]
[1717445279376,1.64180781,3777.2,3776.9,2.04226577]
[1717445279765,1.64180781,3777.2,3777.1,0.721]
[1717445279951,1.64180781,3777.2,3777.1,1.32126577]
[1717445279952,0.62634548,3777.2,3777.1,1.32126577]
[1717445280346,2.21403904,3777.2,3777.1,1.32126577]
[1717445281756,2.21379016,3777.2,3777.1,1.32126577]
[1717445284595,0.62634098,3777.2,3777.1,1.32126577]
[1717445287495,0.62636433,3777.2,3777.1,1.32126577]
[1717445287994,0.6263794,3777.2,3777.1,1.32126577]
[1717445298371,0.6263794,3777.2,3772.9,3.42149668]
[1717445298372,2.64809,3776.3,3776.2,1.93661375]
[1717445298698,2.69878238,3776.3,3776.2,1.32126577]
[1717445299010,3.27111618,3776.3,3776.2,1.32126577]
[1717445299306,4.85814913,3776.3,3776.2,1.32126577]
[1717445300311,3.27111618,3776.3,3776.2,1.32126577]
[1717445301204,2.69878238,3776.3,3776.2,1.32126577]
[1717445301930,4.85825262,3776.3,3776.2,1.32126577]
[1717445302225,3.27121967,3776.3,3776.2,1.32126577]
[1717445302442,5.57925262,3776.3,3776.2,1.32126577]
[1717445302613,4.85825262,3776.3,3776.2,1.32126577]
[1717445302944,4.85814524,3776.3,3776.2,1.32126577]
[1717445303243,3.27123097,3776.3,3776.2,1.32126577]
[1717445303446,4.85814524,3776.3,3776.2,1.32126577]
[1717445304022,5.76960853,3776.3,3776.2,1.32126577]
[1717445304218,2.64851,3775.7,3774.7,5.99160354]
[1717445304544,2.64851,3775.7,3775.3,1.32126577]
[1717445304545,0.04834119,3775.6,3775.3,1.32126577]
[1717445304745,2.64865,3775.5,3775.3,1.32126577]
[1717445305043,0.04862616,3775.4,3775.3,1.32126577]
[1717445310155,0.04862616,3775.4,3775.3,1.52549235]
[1717445310357,0.04862616,3775.4,3775.3,4.02269235]
[1717445310527,2.3673,3776.9,3775.3,4.02269235]
[1717445310528,1.58691427,3776.5,3775.6,2.786]
[1717445310727,1.58691427,3776.8,3776.4,2.04226577]
[1717445311046,1.58691427,3776.8,3776.7,0.721]
[1717445311244,1.58691427,3776.8,3776.7,1.32126577]
[1717445311451,1.58691427,3777.0,3776.7,1.32126577]
[1717445311763,0.21593203,3776.9,3776.7,1.32126577]
[1717445311964,0.55,3776.8,3776.7,1.32126577]
[1717445312685,0.55,3776.8,3775.2,2.64882]
[1717445312686,2.64806,3776.4,3775.2,2.64882]
[1717445312887,2.64806,3776.4,3775.7,0.721]
[1717445313109,2.64806,3776.4,3775.8,1.32126577]
[1717445314441,2.64827,3776.1,3775.8,1.32126577]
[1717445315857,2.64837,3775.9,3775.8,1.32126577]
[1717445316392,2.69209896,3775.9,3775.8,1.32126577]
[1717445324201,3.26458487,3775.9,3775.8,1.32126577]
[1717445324399,2.69209896,3775.9,3775.8,1.32126577]
[1717445325375,3.26458074,3775.9,3775.8,1.32126577]
[1717445326415,4.85064335,3775.9,3775.8,1.32126577]
[1717445326589,2.64871,3775.5,3774.8,0.721]
[1717445326782,0.04349586,3775.4,3774.9,1.32126577]
[1717445327103,2.64879,3775.3,3775.1,0.721]
[1717445327304,2.64879,3775.3,3775.2,1.32126577]
[1717445329488,2.64879,3775.3,3775.2,2.04226577]
[1717445329675,1.58607366,3775.5,3775.2,2.24649235]
[1717445329879,1.58607366,3775.6,3775.4,0.721]
[1717445330080,1.58607366,3775.6,3775.5,1.32126577]
[1717445330280,2.1585661,3775.6,3775.5,1.32126577]
[1717445330594,0.57249244,3775.6,3775.5,1.32126577]
[1717445331485,0.6159978,3775.6,3775.5,1.32126577]
[1717445331680,2.20207146,3775.6,3775.5,1.32126577]
[1717445332115,0.6159978,3775.6,3775.5,1.32126577]
[1717445334260,0.04350536,3775.6,3775.5,1.32126577]
[1717445334432,0.61601003,3775.6,3775.5,1.32126577]
[1717445336070,2.20214156,3775.6,3775.5,1.32126577]
[1717445336555,2.20210888,3775.6,3775.5,1.32126577]
[1717445336852,0.61601003,3775.6,3775.5,1.32126577]
[1717445337047,2.20209024,3775.6,3775.5,1.32126577]
[1717445337520,0.61601003,3775.6,3775.5,1.32126577]
[1717445338256,0.61601003,3775.6,3774.8,2.3478]
[1717445338257,3.02671003,3775.6,3774.8,2.3478]
[1717445338423,1.58607727,3775.4,3774.9,1.32126577]
[1717445338623,0.04344855,3775.3,3774.9,1.32126577]
[1717445339021,2.64893,3775.1,3774.9,1.32126577]
[1717445339329,0.04337043,3775.0,3774.9,1.32126577]
[1717445345462,0.04337043,3775.0,3774.9,2.04226577]
[1717445347573,0.04337043,3775.0,3774.9,2.48127235]
[1717445348290,0.04337043,3775.0,3774.9,4.82677235]
[1717445348737,4.2355912,3775.4,3774.9,4.82677235]
[1717445348938,2.64874,3775.4,3775.3,0.721]
[1717445349250,2.64874,3775.4,3775.3,2.04226577]
[1717445350702,3.22121852,3775.4,3775.3,2.04226577]
[1717445351036,2.64874,3775.4,3775.3,2.04226577]
[1717445351506,3.22122309,3775.4,3775.3,2.04226577]
[1717445352235,0.57248309,3775.4,3775.3,2.04226577]
[1717445352458,2.15917467,3775.6,3775.3,4.58059235]
[1717445352636,8.90671891,3775.7,3775.5,0.721]
[1717445352870,8.90671891,3775.7,3775.6,1.32126577]
[1717445353079,2.15916089,3775.7,3775.6,1.32126577]
[1717445353237,0.57244198,3775.7,3775.6,1.32126577]
[1717445353439,2.15916089,3775.7,3775.6,1.32126577]
[1717445353967,0.57244198,3775.7,3775.6,1.32126577]
[1717445354367,4.23522891,3775.8,3775.6,1.32126577]
[1717445354578,0.57243507,3775.7,3775.6,1.32126577]
[1717445355369,0.57244279,3775.7,3775.6,1.32126577]
[1717445356503,4.23522891,3775.8,3775.6,1.32126577]
[1717445356707,4.2352922,3775.8,3775.6,1.32126577]
[1717445356896,2.15922817,3775.7,3775.6,1.32126577]
[1717445357984,4.2353192,3775.8,3775.6,1.32126577]
[1717445359209,1.5868092,3775.9,3775.6,1.32126577]
[1717445360077,1.5868092,3775.9,3775.6,1.77932501]
[1717445360496,1.5868092,3776.0,3775.6,1.77932501]
[1717445361008,0.57241816,3775.9,3775.6,1.77932501]
[1717445361509,0.04369199,3775.8,3775.6,1.77932501]
[1717445361708,0.04369199,3775.8,3775.6,1.32126577]
[1717445361878,1.5868092,3776.0,3775.6,1.32126577]
[1717445362085,0.04371801,3775.9,3775.6,1.32126577]
[1717445362827,0.57241654,3776.0,3775.6,1.32126577]
[1717445363342,0.04371801,3775.9,3775.6,1.32126577]
[1717445363718,2.15922574,3776.1,3775.6,1.32126577]
[1717445364022,0.04369199,3775.8,3775.6,1.32126577]
[1717445364216,2.15922574,3776.1,3775.6,1.32126577]
[1717445364418,0.04366596,3775.7,3775.6,1.32126577]
[1717445364933,2.15922574,3776.1,3775.6,1.32126577]
[1717445365128,0.04366596,3775.7,3775.6,1.32126577]
[1717445365293,2.15922574,3776.1,3775.6,1.32126577]
[1717445365499,0.04374404,3776.0,3775.6,1.32126577]
[1717445367121,2.69210404,3776.0,3775.6,1.32126577]
[1717445367638,4.8513352,3776.0,3775.6,1.32126577]
[1717445367813,0.57242196,3775.9,3775.6,1.32126577]
[1717445368330,0.04363684,3775.8,3775.6,1.32126577]
[1717445374409,0.61608436,3775.8,3775.6,1.32126577]
[1717445376446,2.20275447,3775.8,3775.6,1.32126577]
[1717445376616,1.63030695,3775.8,3775.6,1.32126577]
[1717445376818,1.63088344,3775.8,3775.6,1.32126577]
[1717445377329,0.57244725,3775.7,3775.6,1.32126577]
[1717445377529,1.63088344,3775.8,3775.6,1.32126577]
[1717445377738,0.04357016,3775.7,3775.6,1.32126577]
[1717445377917,0.61601543,3775.7,3775.6,1.32126577]
[1717445378244,0.04357016,3775.7,3775.6,1.32126577]
[1717445378449,0.61599856,3775.7,3775.6,1.32126577]
[1717445379024,0.04357016,3775.7,3775.6,1.32126577]
[1717445379445,1.58728967,3775.8,3775.6,1.32126577]
[1717445379651,0.04356435,3775.7,3775.6,1.32126577]
[1717445380034,0.57243669,3775.7,3775.6,1.32126577]
[1717445380242,0.61600104,3775.7,3775.6,1.32126577]
[1717445382055,2.20329071,3775.7,3775.6,1.32126577]
[1717445382919,0.61600104,3775.7,3775.6,1.32126577]
[1717445383362,0.04356435,3775.7,3775.6,1.32126577]
[1717445383580,0.61598983,3775.7,3775.6,1.32126577]
[1717445383740,0.57242548,3775.7,3775.6,1.32126577]
[1717445384057,0.61597531,3775.7,3775.6,1.32126577]
[1717445384754,0.61597642,3775.7,3775.6,1.32126577]
[1717445386656,0.61597642,3775.7,3775.6,2.04226577]
[1717445388540,0.61597642,3775.7,3775.6,1.32126577]
[1717445389065,2.20302707,3775.7,3775.6,1.32126577]
[1717445389431,2.20302707,3775.7,3775.6,2.04226577]
[1717445390053,2.20302707,3775.7,3775.6,1.32126577]
[1717445390258,2.20302707,3775.7,3775.6,2.04226577]
[1717445390972,0.61597642,3775.7,3775.6,2.04226577]
[1717445396555,2.20302707,3775.7,3775.6,2.04226577]
[1717445396753,0.61597642,3775.7,3775.6,2.04226577]
[1717445396993,2.20302707,3775.7,3775.6,2.04226577]
[1717445397372,0.61597642,3775.7,3775.6,2.04226577]
[1717445399301,0.61597642,3775.7,3775.6,1.32126577]
[1717445399497,0.61597642,3775.7,3775.6,2.04226577]
[1717445400003,2.20302707,3775.7,3775.6,2.04226577]
[1717445401110,0.04354983,3775.7,3775.6,2.04226577]
[1717445401286,2.2030032,3775.7,3775.6,2.04226577]
[1717445401486,2.20244097,3775.7,3775.6,2.04226577]
[1717445403864,2.20250294,3775.7,3775.6,2.04226577]
[1717445408073,2.20250294,3775.7,3775.6,1.32126577]
[1717445411313,2.20250294,3775.7,3775.6,4.3819162]
[1717445411475,0.0429876,3775.7,3775.6,8.07333155]
[1717445411677,0.0429876,3775.7,3775.6,9.45387659]
[1717445411876,0.57237767,3776.0,3775.7,2.64848]
[1717445412180,1.58707903,3776.2,3776.0,2.3829]
[1717445412408,1.58707903,3776.3,3776.1,2.04226577]
[1717445412607,1.58707903,3776.3,3776.2,2.04226577]
[1717445412919,0.5723681,3776.3,3776.2,2.04226577]
[1717445413091,1.58707903,3776.5,3776.2,2.96244949]
[1717445413292,1.58707903,3776.5,3776.4,0.721]
[1717445413593,2.15940282,3776.5,3776.4,2.04226577]
[1717445414418,0.57232379,3776.5,3776.4,2.04226577]
[1717445415124,1.58707903,3776.6,3776.4,2.04226577]
[1717445415348,1.58707903,3776.7,3776.5,1.32126577]
[1717445415643,0.57232012,3776.6,3776.5,1.32126577]
[1717445416214,1.58707903,3776.7,3776.5,1.32126577]
[1717445416410,0.57231937,3776.6,3776.5,1.32126577]
[1717445416658,1.58752582,3776.7,3776.5,1.32126577]
[1717445417326,2.15984519,3776.7,3776.5,1.32126577]
[1717445417529,1.58752582,3776.7,3776.5,1.32126577]
[1717445417849,1.58751381,3776.7,3776.5,1.32126577]
[1717445418025,2.15983306,3776.7,3776.5,1.32126577]
[1717445418236,1.58751381,3776.7,3776.5,1.32126577]
[1717445418408,1.58751381,3776.7,3776.6,0.721]
[1717445418612,1.58751381,3776.8,3776.6,2.04226577]
[1717445418856,2.15982776,3776.8,3776.7,1.32126577]
[1717445419072,1.58751381,3776.8,3776.7,1.32126577]
[1717445420146,2.15982776,3776.9,3776.7,1.32126577]
[1717445421656,0.04136187,3776.8,3776.7,1.32126577]
[1717445422953,0.61367393,3776.8,3776.7,1.32126577]
[1717445423168,0.04136187,3776.8,3776.7,1.32126577]
[1717445423334,0.04136187,3776.8,3776.7,1.52549235]
[1717445423515,9.96739,3777.4,3776.7,1.52549235]
[1717445423516,1.58757352,3777.1,3776.7,2.24649235]
[1717445423722,0.04160025,3777.0,3776.9,0.721]
[1717445423925,0.57227554,3777.3,3776.9,2.04226577]
[1717445424121,0.04165227,3777.2,3777.0,1.32126577]
[1717445424522,4.23496352,3777.4,3777.0,1.32126577]
[1717445424724,0.04161062,3777.3,3777.0,1.32126577]
[1717445425366,0.04161062,3777.3,3777.1,0.721]
[1717445425654,2.64711,3777.7,3777.1,0.721]
[1717445425655,0.57220471,3777.6,3777.2,1.32126577]
[1717445425860,4.23468352,3777.7,3777.2,1.32126577]
[1717445426042,2.64711,3777.7,3777.2,1.32126577]
[1717445426224,2.64711,3777.7,3777.3,0.721]
[1717445426556,2.64711,3777.7,3777.4,1.32126577]
[1717445427357,2.4381,3777.8,3777.5,0.721]
[1717445427522,0.55,3777.7,3777.6,1.32126577]
[1717445428936,7.32,3777.9,3777.6,1.32126577]
[1717445429349,0.55,3777.8,3777.6,1.32126577]
[1717445430761,1.12215881,3778.0,3777.6,1.32126577]
[1717445431358,1.12216091,3778.0,3777.6,1.32126577]
[1717445431659,0.55,3778.0,3777.6,1.32126577]
[1717445433380,7.32,3778.4,3777.6,1.32126577]
[1717445433381,1.58791188,3778.4,3777.9,2.04226577]
[1717445433544,1.58791188,3778.5,3778.2,0.721]
[1717445433748,1.58791188,3778.5,3778.3,1.32126577]
[1717445434063,1.58791188,3778.6,3778.3,1.32126577]
[1717445434233,1.58791188,3778.7,3778.3,1.32126577]
[1717445434432,2.99147507,3778.7,3778.3,1.32126577]
[1717445434669,1.40356319,3778.7,3778.3,1.32126577]
[1717445434876,8.90791188,3778.8,3778.3,1.32126577]
[1717445435181,0.55,3778.7,3778.3,2.04226577]
[1717445436381,0.07085014,3778.6,3778.3,2.04226577]
[1717445438387,0.07085014,3778.6,3778.3,1.32126577]
[1717445441201,0.07085014,3778.6,3778.3,2.04226577]
[1717445445576,0.07085014,3778.6,3778.3,3.66146577]
[1717445445804,0.07085014,3778.6,3778.3,4.38246577]
[1717445446310,0.07085014,3778.6,3778.3,2.04226577]
[1717445452311,1.6589979,3778.6,3778.3,2.04226577]
[1717445453417,1.58814776,3778.5,3778.3,2.04226577]
[1717445454044,0.07094789,3778.4,3778.3,2.04226577]
[1717445455702,0.07094789,3778.4,3778.3,1.32126577]
[1717445457237,1.65909565,3778.4,3778.3,1.32126577]
[1717445460314,0.07094789,3778.4,3778.3,1.32126577]
[1717445460641,0.55,3778.7,3778.3,1.32126577]
[1717445460841,0.06849445,3778.4,3778.3,1.32126577]
[1717445461026,0.55,3778.8,3778.3,1.32126577]
[1717445461202,0.06849445,3778.4,3778.3,1.32126577]
[1717445461405,2.64641,3778.7,3778.3,1.32126577]
[1717445461712,0.06854495,3778.6,3778.3,1.32126577]
[1717445461900,0.06854495,3778.6,3778.4,0.721]
[1717445462106,0.06854495,3778.6,3778.5,1.32126577]
[1717445474484,0.55,3778.8,3778.5,1.32126577]
[1717445474485,1.10818771,3779.1,3778.5,3.91759235]
[1717445474650,1.10818771,3779.3,3779.0,4.43436577]
[1717445474994,1.65841939,3779.8,3779.2,2.04226577]
[1717445474995,1.10818771,3779.6,3779.2,2.04226577]
[1717445475277,4.03332241,3779.9,3779.5,0.721]
[1717445475433,2.64559,3779.9,3779.7,0.721]
[1717445475729,2.64559,3779.9,3779.8,1.32126577]
[1717445481347,2.71018986,3779.9,3779.8,1.32126577]
[1717445494518,0.06459986,3779.9,3779.8,1.32126577]
[1717445494701,0.06459986,3779.9,3779.8,1.52549235]
[1717445494885,2.64536,3780.2,3779.8,1.52549235]
[1717445495093,0.05880492,3779.9,3779.8,1.32126577]
[1717445495414,0.05879538,3779.9,3779.8,1.32126577]
[1717445495613,2.64536,3780.2,3779.8,1.32126577]
[1717445495821,0.05884583,3780.1,3779.8,1.32126577]
[1717445495989,0.05884583,3780.1,3779.8,1.52549235]
[1717445496316,0.05884583,3780.1,3780.0,2.2895]
[1717445496616,2.64516,3780.5,3780.0,3.61076577]
[1717445496832,3.05904471,3780.4,3780.1,2.04226577]
[1717445497829,3.05904471,3780.4,3780.3,0.721]
[1717445497830,0.05904471,3780.4,3780.3,0.721]
[1717445498026,0.05904471,3780.4,3780.3,2.04226577]
[1717445503346,0.63080546,3780.4,3780.3,1.32126577]
[1717445507999,0.63080615,3780.4,3780.3,1.32126577]
[1717445512666,0.05904471,3780.4,3780.3,1.32126577]
[1717445512866,0.57176144,3780.6,3780.3,2.40334235]
[1717445513071,0.57176144,3780.7,3780.4,1.32126577]
[1717445513360,0.57176144,3780.6,3780.4,2.04226577]
[1717445513544,0.57176144,3780.7,3780.4,2.04226577]
[1717445513757,0.57176144,3780.6,3780.4,2.04226577]
[1717445513987,0.57176144,3780.6,3780.5,0.24033424]
[1717445514154,2.64494,3780.8,3780.5,1.56160001]
[1717445514155,0.57176144,3780.7,3780.5,1.56160001]
[1717445514464,2.64494,3780.8,3780.6,1.32126577]
[1717445514633,0.57174896,3780.7,3780.6,1.32126577]
[1717445514955,0.57174897,3780.7,3780.6,1.32126577]
[1717445517372,0.57174897,3780.7,3780.6,1.56160001]
[1717445518760,0.57174897,3780.7,3780.6,2.28260001]
[1717445519127,0.57174897,3781.0,3780.6,2.28260001]
[1717445519762,0.57174897,3781.0,3780.6,1.32126577]
[1717445520082,3.0,3781.1,3780.6,1.32126577]
[1717445520083,0.721,3780.7,3780.6,1.32126577]
[1717445520225,3.7406,3780.7,3779.6,3.2143]
[1717445520426,1.12174897,3780.6,3779.8,0.721]
[1717445520653,0.57174897,3780.5,3779.9,1.32126577]
[1717445522241,0.57174897,3780.4,3779.9,1.32126577]
[1717445522443,0.57174897,3780.5,3779.9,1.32126577]
[1717445522768,0.57174897,3780.4,3779.9,1.32126577]
[1717445523063,0.57174897,3780.5,3779.9,1.83342325]
[1717445523474,0.57174897,3780.4,3780.2,0.721]
[1717445523797,0.57174897,3780.6,3780.3,1.32126577]
[1717445523967,2.64501,3780.7,3780.5,0.721]
[1717445524274,2.64501,3780.7,3780.6,1.32126577]
[1717445524448,3.21675719,3780.7,3780.6,1.32126577]
[1717445526665,3.27267046,3780.7,3780.6,1.32126577]
[1717445527537,5.53867046,3780.7,3779.9,0.51215748]
[1717445527871,2.64515,3780.5,3780.0,1.32126577]
[1717445528043,0.62761229,3780.4,3780.0,1.32126577]
[1717445528379,0.57174719,3780.3,3780.0,1.32126577]
[1717445528536,0.0558651,3780.4,3780.0,1.32126577]
[1717445528537,0.57174719,3780.2,3780.0,1.32126577]
[1717445528732,0.05591075,3780.2,3780.0,1.32126577]
[1717445529152,0.57178983,3780.1,3780.0,1.32126577]
[1717445529365,0.05588552,3780.1,3780.0,1.32126577]
[1717445529566,0.62767535,3780.1,3780.0,1.32126577]
[1717445530575,0.05588552,3780.1,3780.0,1.32126577]
[1717445530741,0.62767535,3780.1,3780.0,1.52549235]
[1717445530939,0.05588552,3780.1,3780.0,1.52549235]
[1717445531374,0.57178983,3780.2,3780.0,1.52549235]
[1717445531678,2.2751,3780.5,3780.0,1.52549235]
[1717445531679,0.05575903,3780.1,3780.0,1.52549235]
[1717445531879,0.5717792,3780.4,3780.0,2.24649235]
[1717445532030,0.62758868,3780.3,3780.0,2.24649235]
[1717445532234,0.5717792,3780.2,3780.0,2.24649235]
[1717445532488,0.05575903,3780.1,3780.0,2.24649235]
[1717445532635,0.57177924,3780.4,3780.0,2.24649235]
[1717445532840,0.05580948,3780.3,3780.0,2.24649235]
[1717445533040,0.57177924,3780.2,3780.0,2.24649235]
[1717445533262,0.05575903,3780.1,3780.0,2.24649235]
[1717445533494,0.57177687,3780.4,3780.0,2.24649235]
[1717445533780,0.62758635,3780.3,3780.0,1.52549235]
[1717445534010,0.57177687,3780.2,3780.1,0.721]
[1717445534272,0.57177687,3780.2,3780.1,2.04226577]
[1717445534478,0.62761646,3780.2,3780.1,2.04226577]
[1717445534900,0.05583959,3780.2,3780.1,2.04226577]
[1717445535045,2.21588431,3780.2,3780.1,2.04226577]
[1717445535856,2.21588431,3780.2,3780.1,4.67641501]
[1717445536065,0.62761613,3780.2,3780.1,4.67641501]
[1717445536366,0.05583959,3780.2,3780.1,3.95541501]
[1717445536564,0.05583959,3780.2,3780.1,4.67641501]
[1717445536761,0.05583959,3780.2,3780.1,1.54591501]
[1717445536967,1.58826818,3780.4,3780.1,2.26691501]
[1717445537171,1.58826818,3780.4,3780.3,0.721]
[1717445537384,2.16001667,3780.4,3780.3,2.04226577]
[1717445537598,1.58826818,3780.5,3780.3,2.04226577]
[1717445537872,1.58826818,3780.5,3780.4,1.32126577]
[1717445538262,2.15998957,3780.5,3780.4,1.32126577]
[1717445538487,1.58826818,3780.5,3780.4,1.32126577]
[1717445539043,0.57172139,3780.5,3780.4,1.32126577]
[1717445541554,0.62763371,3780.5,3780.4,1.32126577]
[1717445541966,0.05591232,3780.5,3780.4,1.32126577]
[1717445542162,0.62762607,3780.5,3780.4,1.32126577]
[1717445542367,0.57171375,3780.5,3780.4,1.32126577]
[1717445542574,0.62762607,3780.5,3780.4,1.32126577]
[1717445542746,0.62762618,3780.5,3780.4,1.32126577]
[1717445545480,0.62762686,3780.5,3780.4,1.32126577]
[1717445550790,0.62762572,3780.5,3780.4,1.32126577]
[1717445553502,2.21571852,3780.5,3780.4,1.32126577]
[1717445553702,1.64400512,3780.5,3780.4,1.32126577]
[1717445554300,2.21571852,3780.5,3780.4,1.32126577]
[1717445554506,0.62762572,3780.5,3780.4,1.32126577]
[1717445554664,2.21571852,3780.5,3780.4,1.32126577]
[1717445563515,0.62762572,3780.5,3780.4,1.32126577]
[1717445564010,0.05591232,3780.5,3780.4,1.32126577]
[1717445564215,0.62763577,3780.5,3780.4,1.32126577]
[1717445564444,0.57172345,3780.5,3780.4,1.32126577]
[1717445564732,0.62679156,3780.5,3780.4,1.32126577]
[1717445565977,0.92957072,3780.5,3780.4,1.32126577]
[1717445567885,0.62679156,3780.5,3780.4,1.32126577]
[1717445572616,2.21493159,3780.5,3780.4,1.32126577]
[1717445577299,0.62679156,3780.5,3780.4,1.32126577]
[1717445577525,2.21493159,3780.5,3780.4,1.32126577]
[1717445577720,0.62679156,3780.5,3780.4,1.32126577]
[1717445577929,2.21493159,3780.5,3780.4,2.01937835]
[1717445578498,0.62679156,3780.5,3780.4,2.01937835]
[1717445579326,0.05506811,3780.5,3780.4,4.35257835]
[1717445579515,1.58814003,3780.8,3780.5,2.64513]
[1717445579719,1.58814003,3780.8,3780.7,1.32126577]
[1717445579917,2.15978932,3780.8,3780.7,2.04226577]
[1717445581812,0.57164929,3780.8,3780.7,2.04226577]
[1717445582139,0.57164929,3780.8,3780.7,1.32126577]
[1717445582140,0.5716463,3780.8,3780.7,1.32126577]
[1717445582595,2.15955269,3780.8,3780.7,1.32126577]
[1717445582931,1.58790639,3780.8,3780.7,1.32126577]
[1717445583442,2.99576287,3780.8,3780.7,1.32126577]
[1717445583643,2.15961531,3780.8,3780.7,1.32126577]
[1717445584542,0.57166287,3780.8,3780.7,2.04226577]
[1717445584846,2.1596914,3780.8,3780.7,2.04226577]
[1717445585054,0.57166287,3780.8,3780.7,2.04226577]
[1717445586022,2.15967371,3780.8,3780.7,2.04226577]
[1717445586538,2.21442447,3780.8,3780.7,2.04226577]
[1717445587607,2.21442619,3780.8,3780.7,2.04226577]
[1717445587930,1.6427474,3780.8,3780.7,2.04226577]
[1717445588133,2.21442619,3780.8,3780.7,2.04226577]
[1717445588305,1.6427474,3780.8,3780.7,2.04226577]
[1717445588522,2.21442619,3780.8,3780.7,2.04226577]
[1717445588723,1.6427474,3780.8,3780.7,2.04226577]
[1717445588917,2.21442619,3780.8,3780.7,2.04226577]
[1717445589263,1.6427474,3780.8,3780.7,2.04226577]
[1717445589410,2.21442619,3780.8,3780.7,2.04226577]
[1717445589746,1.6427474,3780.8,3780.7,2.04226577]
[1717445590042,2.21442619,3780.8,3780.7,2.04226577]
[1717445590250,1.6427474,3780.8,3780.7,2.04226577]
[1717445590554,2.21442619,3780.8,3780.7,2.04226577]
[1717445590950,1.6427474,3780.8,3780.7,2.04226577]
[1717445591131,2.21442619,3780.8,3780.7,2.04226577]
[1717445591312,1.6427474,3780.8,3780.7,2.04226577]
[1717445591653,2.21442619,3780.8,3780.7,2.04226577]
[1717445591831,1.6427474,3780.8,3780.7,2.04226577]
[1717445592041,2.21442619,3780.8,3780.7,2.04226577]
[1717445592356,1.6427474,3780.8,3780.7,2.04226577]
[1717445592532,0.62642955,3780.8,3780.7,5.00600735]
[1717445592849,0.05475076,3780.8,3780.7,5.00600735]
[1717445593424,1.58799664,3781.0,3780.7,5.00600735]
[1717445593662,0.05477699,3780.8,3780.7,4.28500735]
[1717445593858,1.58799664,3781.0,3780.7,5.00600735]
[1717445594146,1.58799664,3781.0,3780.9,0.721]
[1717445594450,1.58799664,3781.0,3780.9,2.04226577]
[1717445594451,0.57164108,3781.0,3780.9,2.04226577]
[1717445594623,1.58799664,3781.1,3780.9,2.04226577]
[1717445594831,1.58786123,3781.2,3781.0,2.15565478]
[1717445595133,1.58786123,3781.3,3781.1,0.721]
[1717445595334,1.58786123,3781.4,3781.2,2.04226577]
[1717445596326,0.5715839,3781.4,3781.2,2.04226577]
[1717445596528,1.58773302,3781.5,3781.2,2.04226577]
[1717445596723,1.58773302,3781.5,3781.4,0.721]
[1717445596932,1.58773302,3781.5,3781.4,2.04226577]
[1717445597551,2.15931692,3781.5,3781.4,2.04226577]
[1717445598118,1.58773302,3781.5,3781.4,2.04226577]
[1717445598865,1.58773302,3781.5,3781.4,1.32126577]
[1717445601621,1.64127803,3781.5,3781.4,1.32126577]
[1717445601826,1.64127803,3781.5,3781.4,2.03926577]
[1717445602466,1.64127803,3781.5,3781.4,1.32126577]
[1717445602680,1.64127803,3781.5,3781.4,2.03926577]
[1717445606325,1.64127803,3781.5,3781.4,1.52519235]
[1717445606530,1.64127803,3781.5,3781.4,2.24319235]
[1717445608372,0.05354501,3781.5,3781.4,2.24319235]
[1717445608536,0.62512871,3781.5,3781.4,2.24319235]
[1717445608738,1.64127736,3781.5,3781.4,2.24319235]